fUST/lending_fUST_20240701
["ID","MTS","AMOUNT","RATE_DAILY","PERIOD"]
[330772799,1719770414960,208.98551847,0.00014999,2]
[330772800,1719770448692,660.94710043,0.00014999,2]
[330772801,1719770451801,1224.69,0.00010959,2]
[330772802,1719770462371,1020.58,0.00010959,2]
[330772803,1719770473814,850.48,0.00010959,2]
[330772804,1719770484310,708.74,0.00010959,2]
[330772806,1719770493998,168.86608741,0.00014957,2]
[330772807,1719770494799,590.61,0.00010959,2]
[330772808,1719770500418,208.37564863,0.00014999,2]
[330772809,1719770501570,517.32153292,0.00014999,2]
[330772810,1719770505548,492.18,0.00010959,2]
[330772811,1719770516061,410.15,0.00010959,2]
[330772812,1719770526601,341.79,0.00010959,2]
[330772813,1719770537361,284.82,0.00010959,2]
[330772814,1719770537547,322.01145644,0.00014999,2]
[330772815,1719770541776,244.97894054,0.00014999,2]
[330772816,1719770545522,164.53895357,0.00014999,2]
[330772817,1719770547131,850.30728039,0.00015,2]
[330772818,1719770547760,155.90456299,0.00014999,2]
[330772819,1719770547854,237.35,0.00010959,2]
[330772820,1719770552032,402.7993587,0.00014999,2]
[330772821,1719770554070,517.32153292,0.00013283,2]
[330772822,1719770558364,197.8,0.00010959,2]
[330772823,1719770559683,842.54666328,0.00014999,2]
[330772824,1719770560352,10566.16869568,0.00014998,2]
[330772825,1719770561084,796.37419199,0.00014999,4]
[330772826,1719770562384,154.91476285,0.00014999,2]
[330772827,1719770565818,155.05100126,0.00014999,2]
[330772828,1719770566558,172.54155639,0.00014999,2]
[330772829,1719770566752,1117.87472833,0.00014999,2]
[330772830,1719770567298,724.44962889,0.00014999,2]
[330772831,1719770568460,183.98801587,0.00014999,2]
[330772832,1719770568493,181.74563299,0.00014999,2]
[330772833,1719770568848,155.38523359,0.00014999,2]
[330772834,1719770568963,154.85288975,0.00014999,2]
[330772835,1719770569390,164.83,0.00010959,2]
[330772836,1719770569426,2125.30252605,0.00014999,2]
[330772837,1719770569749,1834.5277015,0.00014999,2]
[330772838,1719770569976,208.98551847,0.00014999,2]
[330772839,1719770571445,309.6439095,0.00014999,2]
[330772840,1719770571480,309.6439095,0.00014999,2]
[330772841,1719770571849,3076.83798714,0.00014999,2]
[330772842,1719770571887,155.67984992,0.00014999,2]
[330772843,1719770572266,625.9948816,0.00014999,2]
[330772844,1719770576242,164.83119203,0.00014999,2]
[330772845,1719770576847,209.56639127,0.00014999,2]
[330772846,1719770577159,2128.88510458,0.00014999,2]
[330772847,1719770578626,519.98573171,0.00014999,2]
[330772848,1719770579288,307.91511451,0.00014999,2]
[330772849,1719770580225,824.17,0.00010959,2]
[330772850,1719770581083,157.2456885,0.00014999,2]
[330772851,1719770581132,155.3707062,0.00014999,2]
[330772852,1719770581357,214.18723696,0.00014999,2]
[330772853,1719770581699,154.996983,0.00014999,2]
[330772854,1719770584387,1583.26881397,0.00014999,2]
[330772855,1719770584721,194.98259822,0.00014999,2]
[330772856,1719770585671,1488.52321555,0.00014999,2]
[330772857,1719770590967,208.78179078,0.00014999,2]
[330772859,1719770595902,402.01746783,0.00014999,2]
[330772860,1719770608425,818.0194183,0.00014999,2]
[330772862,1719770612652,730.08869906,0.00014999,2]
[330772865,1719770623494,818.0194183,0.00014999,2]
[330772867,1719770659560,285.68341675,0.00014999,2]
[330772873,1719770698812,248.36537611,0.00014999,2]
[330772874,1719770709090,176.67250128,0.00014999,2]
[330772875,1719770715842,3076.83798714,0.00014999,2]
[330772876,1719770717401,728.74360542,0.00014999,2]
[330772877,1719770728187,195.57704168,0.00014999,2]
[330772879,1719770744465,154.85288975,0.00014999,2]
[330772881,1719770751997,208.57540874,0.00014999,2]
[330772882,1719770756180,290.70816897,0.00014999,2]
[330772883,1719770759400,264.68635392,0.00014999,2]
[330772885,1719770774708,168.86608741,0.00014955,2]
[330772886,1719770781436,560.67388424,0.00014999,2]
[330772888,1719770793629,15554.3406308,0.00014057,2]
[330772892,1719770826973,412.3,0.00010959,2]
[330772893,1719770859884,2110.01542864,0.00014999,2]
[330772898,1719770925974,154.85288975,0.00014999,2]
[330772899,1719770938870,529.85654432,0.00014999,2]
[330772901,1719770956971,200.70286895,0.00014999,2]
[330772902,1719770964444,1431.0987543,0.00014999,2]
[330772905,1719770972728,154.9879291,0.00014999,2]
[330772906,1719771004592,-300.0,0.00015053,2]
[330772907,1719771004622,-300.0,0.00015053,2]
[330772908,1719771004654,-108.29235943,0.00015054,2]
[330772909,1719771004694,-708.29235943,0.00015054,2]
[330772962,1719771032525,-1890.23528114,0.00015054,2]
[330772964,1719771032535,-500.0,0.00015054,2]
[330772966,1719771032544,-822.12,0.00015054,2]
[330772968,1719771032553,-2520.97,0.00015054,2]
[330772970,1719771032562,-500.0,0.00015054,2]
[330772972,1719771032572,-4803.58655416,0.00015054,2]
[330772974,1719771032584,-346.49534435,0.00015054,2]
[330772976,1719771032597,-1515.87004296,0.00015054,2]
[330772982,1719771032642,-733.99330087,0.00015054,2]
[330773100,1719771038492,-2609.71283794,0.00015054,2]
[330773101,1719771038504,-3189.86401734,0.00015054,2]
[330773102,1719771038516,-2428.13971091,0.00015054,2]
[330773103,1719771038528,-5937.98819147,0.00015054,2]
[330773104,1719771038539,-2987.45,0.00015054,2]
[330773105,1719771038548,-5308.73,0.00015054,2]
[330773106,1719771038558,-2248.81,0.00015055,2]
[330773107,1719771038568,-872.96,0.00015055,2]
[330773108,1719771038577,-500.0,0.00015055,2]
[330773109,1719771038588,-6049.03,0.00015055,2]
[330773110,1719771038597,-5836.78,0.00015055,2]
[330773111,1719771038607,-2980.66,0.00015055,2]
[330773112,1719771038619,-576.42,0.00015055,2]
[330773113,1719771038637,-585.39,0.00015055,2]
[330773114,1719771038653,-2635.96,0.00015055,2]
[330773115,1719771038669,-2518.92,0.00015055,2]
[330773116,1719771038686,-500.0,0.00015055,2]
[330773117,1719771038703,-1558.41,0.00015055,2]
[330773118,1719771038723,-500.0,0.00015055,2]
[330773119,1719771038739,-699.72,0.00015055,2]
[330773120,1719771038754,-926.5,0.00015055,2]
[330773121,1719771038771,-601.8,0.00015055,2]
[330773122,1719771038786,-500.0,0.00015055,2]
[330773123,1719771038800,-4245.43931343,0.00015055,2]
[330773124,1719771038816,-500.0,0.00015056,2]
[330773125,1719771038831,-500.0,0.00015056,2]
[330773126,1719771038849,-2163.86,0.00015056,2]
[330773127,1719771038864,-500.0,0.00015056,2]
[330773128,1719771038876,-524.18542708,0.00015056,2]
[330773129,1719771038894,-825.89394163,0.00015056,2]
[330773130,1719771038934,-1913.78605837,0.00015056,2]
[330773131,1719771038948,-500.0,0.00015056,2]
[330773132,1719771038963,-500.0,0.00015056,2]
[330773133,1719771038976,-525.79,0.00015056,2]
[330773134,1719771038989,-251.74652175,0.00015056,2]
[330773135,1719771039007,-248.25347825,0.00015056,2]
[330773136,1719771039022,-558.84,0.00015056,2]
[330773137,1719771039036,-518.6968974,0.00015056,2]
[330773138,1719771039051,-2349.76,0.00015056,2]
[330773139,1719771039065,-2887.7,0.00015056,2]
[330773140,1719771039080,-501.5096367,0.00015056,2]
[330773141,1719771039094,-669.64,0.00015056,2]
[330773142,1719771039109,-500.0,0.00015056,2]
[330773143,1719771039123,-500.0,0.00015056,2]
[330773144,1719771039138,-500.0,0.00015056,2]
[330773145,1719771039152,-500.0,0.00015056,2]
[330773146,1719771039167,-744.5,0.00015056,2]
[330773147,1719771039183,-1000.48,0.00015056,2]
[330773148,1719771039197,-500.0,0.00015056,2]
[330773149,1719771039212,-799.16,0.00015056,2]
[330773150,1719771039227,-687.4,0.00015056,2]
[330773151,1719771039242,-500.0,0.00015056,2]
[330773152,1719771039257,-500.0,0.00015056,2]
[330773153,1719771039271,-500.0,0.00015056,2]
[330773154,1719771039285,-2516.13,0.00015056,2]
[330773155,1719771039300,-500.0,0.00015056,2]
[330773156,1719771039314,-500.0,0.00015056,2]
[330773157,1719771039328,-500.0,0.00015056,2]
[330773158,1719771039342,-12036.49,0.00015056,2]
[330773159,1719771039357,-500.0,0.00015056,2]
[330773160,1719771039371,-506.11281596,0.00015056,2]
[330773161,1719771039385,-518.64692425,0.00015056,2]
[330773162,1719771039398,-500.0,0.00015056,2]
[330773163,1719771039413,-4290.55,0.00015056,2]
[330773164,1719771039429,-913.01,0.00015056,2]
[330773165,1719771039444,-503.58440114,0.00015056,2]
[330773166,1719771039458,-1793.24,0.00015056,2]
[330773167,1719771039471,-500.0,0.00015056,2]
[330773168,1719771039485,-804.12,0.00015056,2]
[330773169,1719771039499,-930.28,0.00015056,2]
[330773170,1719771039514,-503.72257834,0.00015056,2]
[330773171,1719771039529,-500.0,0.00015056,2]
[330773172,1719771039543,-896.34,0.00015056,2]
[330773173,1719771039557,-500.0,0.00015056,2]
[330773174,1719771039571,-500.0,0.00015056,2]
[330773175,1719771039587,-500.0,0.00015056,2]
[330773176,1719771039602,-1137.45,0.00015056,2]
[330773177,1719771039616,-1991.42,0.00015056,2]
[330773178,1719771039626,-1071.78,0.00015056,2]
[330773179,1719771039635,-500.0,0.00015056,2]
[330773180,1719771039646,-500.0,0.00015056,2]
[330773181,1719771039656,-628.63,0.00015056,2]
[330773182,1719771039849,-2083.81,0.00015056,2]
[330773183,1719771039859,-500.0,0.00015056,2]
[330773184,1719771039870,-500.0,0.00015056,2]
[330773185,1719771039880,-500.0,0.00015056,2]
[330773186,1719771039892,-152999.21612714,0.00015057,2]
[330773187,1719771039902,-501.68919144,0.00015057,2]
[330773188,1719771039912,-416.5541721,0.00015057,2]
[330773189,1719771039922,-500.0,0.00015057,2]
[330773190,1719771039934,-500.0,0.00015057,2]
[330773191,1719771039944,-500.0,0.00015057,2]
[330773193,1719771039954,-500.0,0.00015057,2]
[330773194,1719771039966,-500.0,0.00015057,2]
[330773195,1719771039977,-500.0,0.00015057,2]
[330773196,1719771039986,-502.88260651,0.00015057,2]
[330773197,1719771039996,-601.87869073,0.00015057,2]
[330773198,1719771040006,-595.10283752,0.00015057,2]
[330773199,1719771040016,-500.0,0.00015057,2]
[330773200,1719771040026,-500.0,0.00015057,2]
[330773201,1719771040037,-500.0,0.00015057,2]
[330773202,1719771040047,-501.73331331,0.00015057,2]
[330773203,1719771040057,-500.0,0.00015057,2]
[330773204,1719771040067,-500.0,0.00015057,2]
[330773205,1719771040077,-500.0,0.00015057,2]
[330773207,1719771040087,-500.0,0.00015057,2]
[330773208,1719771040098,-500.0,0.00015057,2]
[330773209,1719771040108,-500.0,0.00015057,2]
[330773210,1719771040118,-500.0,0.00015057,2]
[330773211,1719771040129,-500.0,0.00015057,2]
[330773212,1719771040139,-500.0,0.00015057,2]
[330773213,1719771040149,-500.0,0.00015057,2]
[330773214,1719771040160,-500.0,0.00015057,2]
[330773215,1719771040170,-500.0,0.00015057,2]
[330773216,1719771040180,-500.0,0.00015057,2]
[330773217,1719771040190,-589.64,0.00015057,2]
[330773218,1719771040200,-500.0,0.00015057,2]
[330773219,1719771040211,-500.0,0.00015057,2]
[330773220,1719771040220,-497.23038477,0.00015057,2]
[330773221,1719771040230,-500.0,0.00015057,2]
[330773222,1719771040240,-200.21717065,0.00015057,2]
[330773223,1719771040250,-500.0,0.00015057,2]
[330773224,1719771040261,-500.0,0.00015057,2]
[330773225,1719771040271,-500.0,0.00015057,2]
[330773226,1719771040280,-500.0,0.00015057,2]
[330773227,1719771040290,-500.0,0.00015057,2]
[330773228,1719771040300,-500.0,0.00015057,2]
[330773229,1719771040310,-500.0,0.00015057,2]
[330773230,1719771040320,-505.17713128,0.00015057,2]
[330773231,1719771040330,-500.0,0.00015057,2]
[330773232,1719771040340,-500.0,0.00015057,2]
[330773233,1719771040350,-500.0,0.00015057,2]
[330773234,1719771040360,-521.37,0.00015057,2]
[330773235,1719771040370,-500.0,0.00015057,2]
[330773236,1719771040380,-577.53428993,0.00015057,2]
[330773237,1719771040390,-500.0,0.00015057,2]
[330773238,1719771040400,-500.0,0.00015057,2]
[330773239,1719771040410,-255.40577706,0.00015057,2]
[330773240,1719771040419,-500.0,0.00015057,2]
[330773241,1719771040429,-500.0,0.00015057,2]
[330773242,1719771040438,-18273.02,0.00015057,2]
[330773243,1719771040448,-501.72680499,0.00015057,2]
[330773244,1719771040458,-500.0,0.00015057,2]
[330773245,1719771040467,-500.0,0.00015057,2]
[330773246,1719771040476,-500.0,0.00015057,2]
[330773247,1719771040485,-501.00203503,0.00015057,2]
[330773248,1719771040494,-608.02249025,0.00015057,2]
[330773249,1719771040503,-500.0,0.00015057,2]
[330773250,1719771040512,-305.63987888,0.00015057,2]
[330773251,1719771040522,-810.82,0.00015057,2]
[330773252,1719771040532,-515.09824929,0.00015057,2]
[330773253,1719771040541,-500.0,0.00015057,2]
[330773254,1719771040551,-500.0,0.00015057,2]
[330773256,1719771040560,-500.0,0.00015057,2]
[330773258,1719771040569,-696.64,0.00015057,2]
[330773259,1719771040578,-897.93,0.00015057,2]
[330773260,1719771040589,-500.0,0.00015057,2]
[330773261,1719771040598,-501.7334312,0.00015057,2]
[330773262,1719771040607,-500.0,0.00015057,2]
[330773263,1719771040617,-500.0,0.00015057,2]
[330773264,1719771040626,-506.8484284,0.00015057,2]
[330773265,1719771040636,-904.83,0.00015057,2]
[330773266,1719771040645,-550.43610066,0.00015057,2]
[330773267,1719771040656,-1633.0,0.00015057,2]
[330773268,1719771040666,-500.0,0.00015057,2]
[330773270,1719771040676,-500.0,0.00015057,2]
[330773271,1719771040686,-500.0,0.00015057,2]
[330773273,1719771040696,-500.0,0.00015057,2]
[330773274,1719771040705,-500.0,0.00015057,2]
[330773275,1719771040715,-500.0,0.00015057,2]
[330773276,1719771040726,-500.0,0.00015057,2]
[330773277,1719771040735,-8083.31,0.00015057,2]
[330773278,1719771040745,-1454.98,0.00015057,2]
[330773279,1719771040755,-500.0,0.00015057,2]
[330773280,1719771040764,-1080.08,0.00015057,2]
[330773281,1719771040774,-500.0,0.00015057,2]
[330773282,1719771040783,-500.0,0.00015057,2]
[330773283,1719771040792,-500.0,0.00015057,2]
[330773284,1719771040802,-500.0,0.00015057,2]
[330773285,1719771040812,-2690.13,0.00015057,2]
[330773286,1719771040822,-500.0,0.00015057,2]
[330773287,1719771040831,-500.0,0.00015057,2]
[330773288,1719771040841,-775.72,0.00015057,2]
[330773289,1719771040850,-500.0,0.00015057,2]
[330773290,1719771040860,-500.0,0.00015057,2]
[330773291,1719771040870,-608.6,0.00015057,2]
[330773292,1719771040880,-162.5448331,0.00015057,2]
[330773293,1719771040893,-500.0,0.00015057,2]
[330773294,1719771040903,-500.0,0.00015057,2]
[330773295,1719771040912,-500.0,0.00015057,2]
[330773296,1719771040922,-529.3,0.00015057,2]
[330773297,1719771040933,-500.0,0.00015057,2]
[330773298,1719771040942,-547.28,0.00015057,2]
[330773299,1719771040951,-904.05,0.00015057,2]
[330773300,1719771040963,-502.58366874,0.00015057,2]
[330773301,1719771040973,-523.53,0.00015057,2]
[330773302,1719771040982,-500.0,0.00015057,2]
[330773303,1719771040991,-257.44982277,0.00015057,2]
[330773304,1719771041001,-500.0,0.00015057,2]
[330773305,1719771041011,-500.0,0.00015057,2]
[330773306,1719771041021,-500.0,0.00015057,2]
[330773307,1719771041030,-500.0,0.00015057,2]
[330773308,1719771041040,-500.0,0.00015057,2]
[330773309,1719771041049,-500.0,0.00015057,2]
[330773310,1719771041058,-500.0,0.00015057,2]
[330773311,1719771041068,-500.0,0.00015057,2]
[330773312,1719771041077,-393.59091306,0.00015057,2]
[330773313,1719771041087,-500.0,0.00015057,2]
[330773314,1719771041097,-500.0,0.00015057,2]
[330773315,1719771041106,-1433.89,0.00015057,2]
[330773316,1719771041116,-1433.89,0.00015057,2]
[330773317,1719771041125,-1433.89,0.00015057,2]
[330773318,1719771041134,-500.0,0.00015057,2]
[330773319,1719771041144,-500.0,0.00015057,2]
[330773320,1719771041154,-500.0,0.00015057,2]
[330773321,1719771041163,-812.22,0.00015057,2]
[330773322,1719771041172,-546.67653894,0.00015057,2]
[330773323,1719771041183,-500.0,0.00015057,2]
[330773324,1719771041192,-500.0,0.00015057,2]
[330773325,1719771041202,-500.0,0.00015057,2]
[330773326,1719771041212,-500.0,0.00015057,2]
[330773327,1719771041224,-508.10731312,0.00015057,2]
[330773328,1719771041234,-500.0,0.00015057,2]
[330773329,1719771041243,-500.0,0.00015057,2]
[330773330,1719771041253,-500.0,0.00015057,2]
[330773331,1719771041262,-500.0,0.00015057,2]
[330773332,1719771041271,-500.0,0.00015057,2]
[330773333,1719771041280,-500.0,0.00015057,2]
[330773334,1719771041291,-500.0,0.00015057,2]
[330773335,1719771041300,-500.0,0.00015057,2]
[330773336,1719771041309,-508.18186603,0.00015057,2]
[330773337,1719771041318,-1667.8,0.00015057,2]
[330773338,1719771041327,-500.0,0.00015057,2]
[330773339,1719771041337,-500.0,0.00015057,2]
[330773340,1719771041346,-237.5712589,0.00015057,2]
[330773341,1719771041355,-500.0,0.00015057,2]
[330773342,1719771041364,-500.0,0.00015057,2]
[330773343,1719771041373,-500.0,0.00015057,2]
[330773344,1719771041382,-500.0,0.00015057,2]
[330773345,1719771041391,-1288.13,0.00015057,2]
[330773346,1719771041400,-500.0,0.00015057,2]
[330773347,1719771041410,-500.0,0.00015057,2]
[330773348,1719771041419,-502.81745339,0.00015057,2]
[330773349,1719771041429,-501.6,0.00015057,2]
[330773350,1719771041440,-676.95,0.00015057,2]
[330773351,1719771041449,-506.07113532,0.00015057,2]
[330773352,1719771041458,-500.0,0.00015057,2]
[330773353,1719771041470,-500.0,0.00015057,2]
[330773354,1719771041481,-500.0,0.00015057,2]
[330773355,1719771041492,-500.0,0.00015057,2]
[330773356,1719771041503,-500.0,0.00015057,2]
[330773357,1719771041512,-500.0,0.00015057,2]
[330773358,1719771041521,-500.0,0.00015057,2]
[330773359,1719771041532,-500.0,0.00015057,2]
[330773360,1719771041542,-504.37,0.00015057,2]
[330773361,1719771041551,-500.0,0.00015057,2]
[330773362,1719771041562,-523.07,0.00015057,2]
[330773363,1719771041573,-500.0,0.00015057,2]
[330773364,1719771041584,-500.0,0.00015057,2]
[330773365,1719771041596,-500.0,0.00015057,2]
[330773366,1719771041606,-501.9053898,0.00015057,2]
[330773367,1719771041616,-500.0,0.00015057,2]
[330773368,1719771041625,-500.0,0.00015057,2]
[330773369,1719771041635,-884.82,0.00015057,2]
[330773370,1719771041644,-507.55763966,0.00015057,2]
[330773371,1719771041653,-500.0,0.00015057,2]
[330773372,1719771041663,-500.0,0.00015057,2]
[330773373,1719771041671,-502.60302224,0.00015057,2]
[330773374,1719771041682,-500.28,0.00015057,2]
[330773375,1719771041693,-356.11122265,0.00015057,2]
[330773376,1719771041702,-500.0,0.00015057,2]
[330773377,1719771041713,-500.0,0.00015057,2]
[330773378,1719771041722,-649.75,0.00015057,2]
[330773379,1719771041731,-1114.74,0.00015057,2]
[330773380,1719771041740,-576.5,0.00015057,2]
[330773381,1719771041749,-500.0,0.00015057,2]
[330773382,1719771041758,-567.06,0.00015057,2]
[330773383,1719771041767,-230.84692815,0.00015057,2]
[330773384,1719771041776,-500.2637653,0.00015057,2]
[330773385,1719771041785,-504.96553051,0.00015057,2]
[330773386,1719771041796,-500.0,0.00015057,2]
[330773387,1719771041805,-500.0,0.00015057,2]
[330773388,1719771041814,-2721.35,0.00015057,2]
[330773389,1719771041823,-548.3,0.00015057,2]
[330773390,1719771041833,-500.0,0.00015057,2]
[330773391,1719771041842,-639.76298879,0.00015057,2]
[330773392,1719771041851,-500.0,0.00015057,2]
[330773393,1719771041861,-500.0,0.00015057,2]
[330773394,1719771041870,-505.7045476,0.00015057,2]
[330773395,1719771041881,-500.0,0.00015057,2]
[330773396,1719771041895,-504.25480397,0.00015057,2]
[330773397,1719771041905,-500.0,0.00015057,2]
[330773398,1719771041916,-500.0,0.00015057,2]
[330773399,1719771041928,-500.0,0.00015057,2]
[330773400,1719771041939,-453.7514208,0.00015057,2]
[330773401,1719771041948,-500.0,0.00015057,2]
[330773402,1719771041958,-538.94226023,0.00015057,2]
[330773403,1719771041968,-500.0,0.00015057,2]
[330773404,1719771041978,-500.0,0.00015057,2]
[330773405,1719771041987,-502.59936462,0.00015057,2]
[330773406,1719771041996,-500.0,0.00015057,2]
[330773407,1719771042006,-502.5492614,0.00015057,2]
[330773408,1719771042016,-500.0,0.00015057,2]
[330773409,1719771042025,-500.0,0.00015057,2]
[330773410,1719771042035,-500.0,0.00015057,2]
[330773411,1719771042136,-507.15160351,0.00015057,2]
[330773412,1719771042153,-571.36835007,0.00015057,2]
[330773413,1719771042163,-500.0,0.00015057,2]
[330773414,1719771042174,-500.0,0.00015057,2]
[330773415,1719771042186,-500.0,0.00015057,2]
[330773416,1719771042195,-500.0,0.00015057,2]
[330773417,1719771042204,-500.0,0.00015057,2]
[330773418,1719771042214,-500.0,0.00015057,2]
[330773419,1719771042223,-581.74,0.00015057,2]
[330773420,1719771042232,-500.0,0.00015057,2]
[330773421,1719771042242,-701.68,0.00015057,2]
[330773422,1719771042252,-13565.55,0.00015057,2]
[330773423,1719771042262,-500.0,0.00015057,2]
[330773424,1719771042271,-579.96,0.00015057,2]
[330773425,1719771042280,-512.96480294,0.00015057,2]
[330773426,1719771042290,-500.0,0.00015058,2]
[330773427,1719771042301,-500.0,0.00015058,2]
[330773428,1719771042311,-500.0,0.00015058,2]
[330773429,1719771042321,-500.0,0.00015058,2]
[330773430,1719771042331,-500.0,0.00015058,2]
[330773431,1719771042341,-1155.62,0.00015058,2]
[330773432,1719771042353,-500.0,0.00015058,2]
[330773433,1719771042362,-959.78,0.00015058,2]
[330773434,1719771042371,-500.0,0.00015058,2]
[330773435,1719771042381,-500.0,0.00015058,2]
[330773436,1719771042392,-500.0,0.00015058,2]
[330773437,1719771042402,-500.0,0.00015058,2]
[330773438,1719771042412,-500.0,0.00015058,2]
[330773439,1719771042422,-756.89,0.00015058,2]
[330773440,1719771042431,-504.73942185,0.00015058,2]
[330773441,1719771042440,-500.0,0.00015058,2]
[330773442,1719771042448,-1401.72,0.00015058,2]
[330773443,1719771042458,-2264.21,0.00015058,2]
[330773444,1719771042467,-500.0,0.00015058,2]
[330773445,1719771042476,-500.0,0.00015058,2]
[330773446,1719771042485,-500.0,0.00015058,2]
[330773447,1719771042494,-500.0,0.00015058,2]
[330773448,1719771042504,-500.0,0.00015058,2]
[330773449,1719771042513,-1161.71,0.00015058,2]
[330773450,1719771042522,-500.0,0.00015058,2]
[330773451,1719771042531,-500.0,0.00015058,2]
[330773452,1719771042541,-500.0,0.00015058,2]
[330773453,1719771042550,-821.21,0.00015058,2]
[330773454,1719771042560,-500.0,0.00015058,2]
[330773455,1719771042570,-1684.43,0.00015058,2]
[330773456,1719771042580,-503.17700654,0.00015058,2]
[330773457,1719771042590,-549.79723835,0.00015058,2]
[330773458,1719771042599,-681.93,0.00015058,2]
[330773459,1719771042610,-500.0,0.00015058,2]
[330773460,1719771042619,-680.96,0.00015058,2]
[330773461,1719771042630,-1987.36,0.00015058,2]
[330773462,1719771042639,-500.0,0.00015058,2]
[330773463,1719771042649,-500.0,0.00015058,2]
[330773464,1719771042659,-500.0,0.00015058,2]
[330773465,1719771042668,-1837.12,0.00015058,2]
[330773466,1719771042678,-500.0,0.00015058,2]
[330773467,1719771042688,-1050.92,0.00015058,2]
[330773468,1719771042698,-500.0,0.00015058,2]
[330773469,1719771042707,-504.90985655,0.00015058,2]
[330773470,1719771042717,-500.0,0.00015058,2]
[330773471,1719771042726,-1352.14,0.00015058,2]
[330773472,1719771042735,-500.0,0.00015058,2]
[330773473,1719771042745,-500.0,0.00015058,2]
[330773474,1719771042755,-1049.3,0.00015058,2]
[330773475,1719771042766,-1704.23,0.00015058,2]
[330773476,1719771042777,-500.0,0.00015058,2]
[330773477,1719771042786,-500.0,0.00015058,2]
[330773478,1719771042796,-617.24,0.00015058,2]
[330773479,1719771042806,-501.8330513,0.00015058,2]
[330773480,1719771042815,-500.0,0.00015058,2]
[330773481,1719771042824,-500.0,0.00015058,2]
[330773482,1719771042834,-500.0,0.00015058,2]
[330773483,1719771042846,-500.0,0.00015058,2]
[330773484,1719771042855,-500.0,0.00015058,2]
[330773485,1719771042865,-319.37330788,0.00015059,2]
[330773486,1719771042875,-188.49307056,0.00015059,2]
[330773487,1719771042889,-500.0,0.0001506,2]
[330773488,1719771042898,-500.0,0.0001506,2]
[330773489,1719771042907,-515.83,0.0001506,2]
[330773491,1719771042917,-1433.89,0.0001506,2]
[330773493,1719771042927,-1433.89,0.0001506,2]
[330773495,1719771042936,-500.0,0.00015061,2]
[330773497,1719771042945,-500.0,0.00015061,2]
[330773498,1719771042955,-500.0,0.00015061,2]
[330773500,1719771042966,-749.34,0.00015061,2]
[330773502,1719771042975,-500.0,0.00015061,2]
[330773504,1719771042985,-500.0,0.00015061,2]
[330773505,1719771042995,-500.0,0.00015061,2]
[330773506,1719771043004,-500.0,0.00015061,2]
[330773507,1719771043014,-1162.04,0.00015061,2]
[330773508,1719771043023,-500.0,0.00015061,2]
[330773509,1719771043032,-500.0,0.00015061,2]
[330773512,1719771043042,-326.45110222,0.00015061,2]
[330773515,1719771043051,-500.0,0.00015061,2]
[330773518,1719771043060,-500.0,0.00015061,2]
[330773521,1719771043071,-500.0,0.00015061,2]
[330773522,1719771043080,-500.0,0.00015061,2]
[330773524,1719771043089,-1012.15,0.00015061,2]
[330773527,1719771043099,-500.0,0.00015061,2]
[330773528,1719771043108,-500.0,0.00015061,2]